[Event "December 12 Early 2023"]
[Site "https://www.chess.com"]
[Date "2023.12.12"]
[Round "5"]
[White "Gong, Qianyun"]
[Black "NovakRatko"]
[Result "1-0"]
[Board "149"]
[TimeControl "180+1"]
[WhiteFideId "8602425"]
[WhiteElo "2556"]
[BlackElo "2361"]
[WhiteTeam "SGP"]
[WhiteClock "0:00:21"]
[BlackClock "0:00:25"]

1. e4 {[%clk 0:02:55]}  d5 {[%clk 0:02:58]} 2. exd5 {[%clk 0:02:55]}  c6 {[%clk 0:02:58]} 3. d4 {[%clk 0:02:51]}  cxd5 {[%clk 0:02:58]} 4. Bd3 {[%clk 0:02:49]}  Nc6 {[%clk 0:02:58]} 5. c3 {[%clk 0:02:50]}  g6 {[%clk 0:02:58]} 6. Bf4 {[%clk 0:02:49]}  f6 {[%clk 0:02:58]} 7. Nd2 {[%clk 0:02:35]}  e5 {[%clk 0:02:58]} 8. Be3 {[%clk 0:02:33]}  e4 {[%clk 0:02:53]} 9. Bb5 {[%clk 0:02:28]}  f5 {[%clk 0:02:53]} 10. Ne2 {[%clk 0:02:25]}  Bg7 {[%clk 0:02:52]} 11. h4 {[%clk 0:02:23]}  Nf6 {[%clk 0:02:51]} 12. Nf4 {[%clk 0:02:22]}  a6 {[%clk 0:02:49]} 13. Ba4 {[%clk 0:02:21]}  O-O {[%clk 0:02:48]} 14. Bb3 {[%clk 0:02:12]}  Ne7 {[%clk 0:02:48]} 15. g3 {[%clk 0:02:06]}  Ng4 {[%clk 0:02:43]} 16. Qe2 {[%clk 0:02:00]}  h6 {[%clk 0:02:42]} 17. O-O-O {[%clk 0:01:53]}  Qd6 {[%clk 0:02:37]} 18. c4 {[%clk 0:01:47]}  Kh7 {[%clk 0:02:22]} 19. Nxd5 {[%clk 0:01:30]}  Nxd5 {[%clk 0:02:21]} 20. cxd5 {[%clk 0:01:31]}  Nxe3 {[%clk 0:02:09]} 21. fxe3 {[%clk 0:01:30]}  b5 {[%clk 0:02:09]} 22. Kb1 {[%clk 0:01:23]}  Bb7 {[%clk 0:02:05]} 23. g4 {[%clk 0:01:23]}  Bxd5 {[%clk 0:02:04]} 24. h5 {[%clk 0:01:22]}  Bxb3 {[%clk 0:01:56]} 25. hxg6+ {[%clk 0:01:21]}  Qxg6 {[%clk 0:01:56]} 26. gxf5 {[%clk 0:01:10]}  Bxa2+ {[%clk 0:01:55]} 27. Kxa2 {[%clk 0:01:11]}  Qxf5 {[%clk 0:01:55]} 28. Rdg1 {[%clk 0:01:04]}  Rac8 {[%clk 0:01:42]} 29. Rh5 {[%clk 0:00:55]}  Qf2 {[%clk 0:01:39]} 30. Qg4 {[%clk 0:00:55]}  Qf7+ {[%clk 0:01:21]} 31. Ka1 {[%clk 0:00:50]}  Rg8 {[%clk 0:01:10]} 32. Qxe4+ {[%clk 0:00:48]}  Kh8 {[%clk 0:01:10]} 33. Rgh1 {[%clk 0:00:43]}  Rge8 {[%clk 0:00:56]} 34. Rxh6+ {[%clk 0:00:39]}  Bxh6 {[%clk 0:00:56]} 35. Rxh6+ {[%clk 0:00:40]}  Kg8 {[%clk 0:00:56]} 36. Qg2+ {[%clk 0:00:34]}  Kf8 {[%clk 0:00:55]} 37. Rh3 {[%clk 0:00:29]}  Rc1+ {[%clk 0:00:53]} 38. Nb1 {[%clk 0:00:28]}  Re6 {[%clk 0:00:53]} 39. Qa8+ {[%clk 0:00:23]}  Re8 {[%clk 0:00:39]} 40. Rh8+ {[%clk 0:00:21]}  Ke7 {[%clk 0:00:40]} 41. Qb7+ {[%clk 0:00:20]}  Kf6 {[%clk 0:00:40]} 42. Rh6+ {[%clk 0:00:19]}  Kg7 {[%clk 0:00:38]} 43. Rh7+ {[%clk 0:00:20]}  Kxh7 {[%clk 0:00:25]} 44. Qxf7+ {[%clk 0:00:21]} 1-0

[Event "December 12 Early 2023"]
[Site "https://www.chess.com"]
[Date "2023.12.12"]
[Round "5"]
[White "Nita, Lucian"]
[Black "Hajiyev, Kanan"]
[Result "0-1"]
[Board "150"]
[TimeControl "180+1"]
[WhiteFideId "1206923"]
[BlackFideId "13404148"]
[WhiteElo "2366"]
[BlackElo "2553"]
[WhiteTeam "ROU"]
[BlackTeam "AZE"]
[WhiteClock "0:01:06"]
[BlackClock "0:01:41"]

1. e4 {[%clk 0:03:00]}  c6 {[%clk 0:02:58]} 2. d3 {[%clk 0:03:00]}  d5 {[%clk 0:02:59]} 3. Nd2 {[%clk 0:03:00]}  a6 {[%clk 0:02:59]} 4. Ngf3 {[%clk 0:03:00]}  Nf6 {[%clk 0:02:59]} 5. Be2 {[%clk 0:03:01]}  Bg4 {[%clk 0:02:59]} 6. O-O {[%clk 0:03:01]}  e6 {[%clk 0:03:00]} 7. e5 {[%clk 0:03:01]}  Nfd7 {[%clk 0:03:00]} 8. d4 {[%clk 0:03:01]}  c5 {[%clk 0:03:01]} 9. c3 {[%clk 0:03:01]}  Nc6 {[%clk 0:03:01]} 10. Nb3 {[%clk 0:02:59]}  cxd4 {[%clk 0:03:01]} 11. cxd4 {[%clk 0:02:59]}  Be7 {[%clk 0:03:01]} 12. Be3 {[%clk 0:02:58]}  Qb6 {[%clk 0:03:01]} 13. Qd2 {[%clk 0:02:56]}  a5 {[%clk 0:03:00]} 14. Rfc1 {[%clk 0:02:55]}  a4 {[%clk 0:02:58]} 15. Nc5 {[%clk 0:02:54]}  Bxc5 {[%clk 0:02:57]} 16. dxc5 {[%clk 0:02:54]}  Qa5 {[%clk 0:02:49]} 17. Rc3 {[%clk 0:02:27]}  O-O {[%clk 0:02:42]} 18. Bd4 {[%clk 0:02:10]}  a3 {[%clk 0:02:25]} 19. bxa3 {[%clk 0:01:57]}  Bxf3 {[%clk 0:02:12]} 20. Bxf3 {[%clk 0:01:56]}  Ndxe5 {[%clk 0:02:13]} 21. Be2 {[%clk 0:01:49]}  Nxd4 {[%clk 0:02:04]} 22. Qxd4 {[%clk 0:01:48]}  Nc6 {[%clk 0:02:05]} 23. Qd3 {[%clk 0:01:41]}  d4 {[%clk 0:02:03]} 24. Rb3 {[%clk 0:01:34]}  Qxc5 {[%clk 0:02:03]} 25. Rxb7 {[%clk 0:01:26]}  Rxa3 {[%clk 0:02:04]} 26. Qe4 {[%clk 0:01:25]}  Na5 {[%clk 0:01:50]} 27. Bd3 {[%clk 0:01:22]}  Rxd3 {[%clk 0:01:44]} 28. Qxd3 {[%clk 0:01:19]}  Nxb7 {[%clk 0:01:44]} 29. h4 {[%clk 0:01:17]}  Qc3 {[%clk 0:01:42]} 30. Rd1 {[%clk 0:01:15]}  Qxd3 {[%clk 0:01:42]} 31. Rxd3 {[%clk 0:01:15]}  e5 {[%clk 0:01:43]} 32. f3 {[%clk 0:01:14]}  Nc5 {[%clk 0:01:43]} 33. Ra3 {[%clk 0:01:13]}  Rd8 {[%clk 0:01:42]} 34. Ra5 {[%clk 0:01:11]}  d3 {[%clk 0:01:42]} 35. Rxc5 {[%clk 0:01:06]}  d2 {[%clk 0:01:41]} 0-1

[Event "December 12 Early 2023"]
[Site "https://www.chess.com"]
[Date "2023.12.12"]
[Round "5"]
[White "Osmak, Yuliia"]
[Black "Georg, Heinz"]
[Result "1-0"]
[Board "152"]
[TimeControl "180+1"]
[WhiteFideId "14101602"]
[BlackFideId "4607295"]
[WhiteElo "2535"]
[BlackElo "2354"]
[WhiteTeam "UKR"]
[BlackTeam "GER"]
[WhiteClock "0:00:51"]
[BlackClock "0:00:12"]

1. g3 {[%clk 0:02:58]}  f5 {[%clk 0:02:51]} 2. Nf3 {[%clk 0:02:57]}  Nf6 {[%clk 0:02:50]} 3. Bg2 {[%clk 0:02:57]}  g6 {[%clk 0:02:50]} 4. O-O {[%clk 0:02:57]}  Bg7 {[%clk 0:02:51]} 5. d3 {[%clk 0:02:57]}  O-O {[%clk 0:02:51]} 6. Nbd2 {[%clk 0:02:46]}  d6 {[%clk 0:02:48]} 7. e4 {[%clk 0:02:46]}  Nc6 {[%clk 0:02:48]} 8. Re1 {[%clk 0:02:44]}  fxe4 {[%clk 0:02:45]} 9. Nxe4 {[%clk 0:02:40]}  Nxe4 {[%clk 0:02:43]} 10. Rxe4 {[%clk 0:02:37]}  Bf5 {[%clk 0:02:34]} 11. Re1 {[%clk 0:02:35]}  Qd7 {[%clk 0:02:34]} 12. Ng5 {[%clk 0:02:31]}  e5 {[%clk 0:02:25]} 13. c3 {[%clk 0:02:22]}  Rab8 {[%clk 0:02:08]} 14. h4 {[%clk 0:02:10]}  h6 {[%clk 0:02:07]} 15. Bd5+ {[%clk 0:02:08]}  Kh8 {[%clk 0:02:06]} 16. Ne4 {[%clk 0:02:08]}  Bg4 {[%clk 0:02:03]} 17. Qb3 {[%clk 0:02:05]}  Ne7 {[%clk 0:02:00]} 18. Nd2 {[%clk 0:01:50]}  c6 {[%clk 0:01:59]} 19. Bg2 {[%clk 0:01:50]}  d5 {[%clk 0:01:58]} 20. Nf1 {[%clk 0:01:48]}  b5 {[%clk 0:01:49]} 21. Be3 {[%clk 0:01:46]}  d4 {[%clk 0:01:40]} 22. cxd4 {[%clk 0:01:44]}  exd4 {[%clk 0:01:40]} 23. Bf4 {[%clk 0:01:42]}  Rbc8 {[%clk 0:01:31]} 24. Nh2 {[%clk 0:01:26]}  Rxf4 {[%clk 0:01:12]} 25. gxf4 {[%clk 0:01:26]}  Nd5 {[%clk 0:01:12]} 26. Bxd5 {[%clk 0:01:16]}  cxd5 {[%clk 0:01:12]} 27. Rac1 {[%clk 0:01:11]}  Rf8 {[%clk 0:01:12]} 28. Rc5 {[%clk 0:01:07]}  Be6 {[%clk 0:01:09]} 29. Qxb5 {[%clk 0:01:05]}  Qf7 {[%clk 0:01:07]} 30. Qc6 {[%clk 0:00:59]}  Qxf4 {[%clk 0:01:04]} 31. Qxe6 {[%clk 0:00:54]}  Qxf2+ {[%clk 0:01:03]} 32. Kh1 {[%clk 0:00:55]}  Qxh4 {[%clk 0:00:41]} 33. Rc8 {[%clk 0:00:53]}  Rxc8 {[%clk 0:00:35]} 34. Qxc8+ {[%clk 0:00:54]}  Kh7 {[%clk 0:00:35]} 35. Qe6 {[%clk 0:00:53]}  h5 {[%clk 0:00:26]} 36. Rg1 {[%clk 0:00:52]}  Bf6 {[%clk 0:00:12]} 37. Qf7+ {[%clk 0:00:51]} 1-0

[Event "December 12 Early 2023"]
[Site "https://www.chess.com"]
[Date "2023.12.12"]
[Round "5"]
[White "Bregu, Riza"]
[Black "Sharapov, Evgeny"]
[Result "1-0"]
[Board "154"]
[TimeControl "180+1"]
[WhiteFideId "4701739"]
[BlackFideId "14103133"]
[WhiteElo "2350"]
[BlackElo "2517"]
[WhiteTeam "ALB"]
[BlackTeam "UKR"]
[WhiteClock "0:02:13"]
[BlackClock "0:02:28"]

1. e4 {[%clk 0:03:00]}  c6 {[%clk 0:02:59]} 2. Nc3 {[%clk 0:03:00]}  d5 {[%clk 0:02:59]} 3. Nf3 {[%clk 0:03:01]}  dxe4 {[%clk 0:02:59]} 4. Nxe4 {[%clk 0:03:02]}  Bg4 {[%clk 0:02:59]} 5. h3 {[%clk 0:02:58]}  Bh5 {[%clk 0:02:59]} 6. g4 {[%clk 0:02:52]}  Bg6 {[%clk 0:02:59]} 7. Ng3 {[%clk 0:02:52]}  Nd7 {[%clk 0:02:59]} 8. d4 {[%clk 0:02:53]}  e6 {[%clk 0:02:59]} 9. h4 {[%clk 0:02:53]}  h6 {[%clk 0:02:58]} 10. h5 {[%clk 0:02:47]}  Bh7 {[%clk 0:02:58]} 11. g5 {[%clk 0:02:47]}  hxg5 {[%clk 0:02:57]} 12. Nxg5 {[%clk 0:02:47]}  Ngf6 {[%clk 0:02:54]} 13. Bf4 {[%clk 0:02:37]}  Nd5 {[%clk 0:02:54]} 14. Nxh7 {[%clk 0:02:21]}  Nxf4 {[%clk 0:02:46]} 15. Nxf8 {[%clk 0:02:22]}  Rxf8 {[%clk 0:02:42]} 16. Qg4 {[%clk 0:02:18]}  Qf6 {[%clk 0:02:36]} 17. O-O-O {[%clk 0:02:15]}  O-O-O {[%clk 0:02:33]} 18. Ne4 {[%clk 0:02:14]}  Qf5 {[%clk 0:02:28]} 19. Nd6+ {[%clk 0:02:13]} 1-0

[Event "December 12 Early 2023"]
[Site "https://www.chess.com"]
[Date "2023.12.12"]
[Round "5"]
[White "Sarkar, Justin"]
[Black "Yashmetov, Mikhail"]
[Result "0-1"]
[Board "158"]
[TimeControl "180+1"]
[WhiteFideId "2010011"]
[BlackFideId "24198900"]
[WhiteElo "2320"]
[BlackElo "2499"]
[WhiteTeam "USA"]
[BlackTeam "RUS"]
[WhiteClock "0:00:00"]
[BlackClock "0:01:21"]

1. d4 {[%clk 0:02:51]}  Nf6 {[%clk 0:02:58]} 2. c4 {[%clk 0:02:51]}  e6 {[%clk 0:02:59]} 3. g3 {[%clk 0:02:49]}  d5 {[%clk 0:02:55]} 4. Bg2 {[%clk 0:02:48]}  Be7 {[%clk 0:02:55]} 5. Nf3 {[%clk 0:02:42]}  O-O {[%clk 0:02:55]} 6. O-O {[%clk 0:02:42]}  dxc4 {[%clk 0:02:55]} 7. Ne5 {[%clk 0:02:39]}  Nc6 {[%clk 0:02:54]} 8. Nxc6 {[%clk 0:02:37]}  bxc6 {[%clk 0:02:53]} 9. Nc3 {[%clk 0:02:29]}  Rb8 {[%clk 0:02:47]} 10. Bxc6 {[%clk 0:02:05]}  Bb7 {[%clk 0:02:44]} 11. Bxb7 {[%clk 0:01:41]}  Rxb7 {[%clk 0:02:45]} 12. e3 {[%clk 0:01:39]}  c5 {[%clk 0:02:27]} 13. Qa4 {[%clk 0:01:06]}  cxd4 {[%clk 0:02:23]} 14. Rd1 {[%clk 0:01:02]}  Rd7 {[%clk 0:02:22]} 15. exd4 {[%clk 0:01:00]}  Rxd4 {[%clk 0:02:23]} 16. Be3 {[%clk 0:00:56]}  Rxd1+ {[%clk 0:02:21]} 17. Rxd1 {[%clk 0:00:55]}  Qc7 {[%clk 0:02:20]} 18. Qxa7 {[%clk 0:00:50]}  Qxa7 {[%clk 0:02:18]} 19. Bxa7 {[%clk 0:00:51]}  Ra8 {[%clk 0:02:17]} 20. Be3 {[%clk 0:00:46]}  Bb4 {[%clk 0:02:17]} 21. Rd4 {[%clk 0:00:40]}  Bxc3 {[%clk 0:02:09]} 22. bxc3 {[%clk 0:00:39]}  Rc8 {[%clk 0:02:05]} 23. a4 {[%clk 0:00:38]}  Nd5 {[%clk 0:02:05]} 24. Bd2 {[%clk 0:00:33]}  Kf8 {[%clk 0:01:58]} 25. a5 {[%clk 0:00:29]}  Ke7 {[%clk 0:01:57]} 26. a6 {[%clk 0:00:27]}  Kd6 {[%clk 0:01:56]} 27. a7 {[%clk 0:00:16]}  Ra8 {[%clk 0:01:50]} 28. Rxc4 {[%clk 0:00:14]}  Rxa7 {[%clk 0:01:49]} 29. Rh4 {[%clk 0:00:12]}  h6 {[%clk 0:01:45]} 30. Rg4 {[%clk 0:00:12]}  g6 {[%clk 0:01:44]} 31. Bxh6 {[%clk 0:00:10]}  Nxc3 {[%clk 0:01:41]} 32. Be3 {[%clk 0:00:10]}  Ra1+ {[%clk 0:01:39]} 33. Kg2 {[%clk 0:00:10]}  Nd5 {[%clk 0:01:39]} 34. Rd4 {[%clk 0:00:10]}  Ra2 {[%clk 0:01:39]} 35. Rd3 {[%clk 0:00:09]}  Ke5 {[%clk 0:01:36]} 36. h4 {[%clk 0:00:08]}  f5 {[%clk 0:01:26]} 37. Rb3 {[%clk 0:00:08]}  Rc2 {[%clk 0:01:23]} 38. Bb6 {[%clk 0:00:07]}  f4 {[%clk 0:01:20]} 39. gxf4+ {[%clk 0:00:05]}  Nxf4+ {[%clk 0:01:21]} 40. Kg3 {[%clk 0:00:00]}  Rc1 {[%clk 0:01:21]} 0-1

[Event "December 12 Early 2023"]
[Site "https://www.chess.com"]
[Date "2023.12.12"]
[Round "5"]
[White "Marcziter, Dmitrii"]
[Black "Andrews, Todd"]
[Result "0-1"]
[Board "160"]
[TimeControl "180+1"]
[WhiteFideId "13900765"]
[BlackFideId "2012456"]
[WhiteElo "2306"]
[BlackElo "2494"]
[WhiteTeam "GER"]
[BlackTeam "USA"]
[WhiteClock "0:00:00"]
[BlackClock "0:00:11"]

1. d4 {[%clk 0:03:00]}  Nf6 {[%clk 0:02:59]} 2. c4 {[%clk 0:03:01]}  c5 {[%clk 0:03:00]} 3. d5 {[%clk 0:03:01]}  b5 {[%clk 0:03:00]} 4. cxb5 {[%clk 0:03:01]}  a6 {[%clk 0:03:01]} 5. b6 {[%clk 0:03:02]}  e6 {[%clk 0:03:00]} 6. Nc3 {[%clk 0:03:02]}  Nxd5 {[%clk 0:03:01]} 7. Nxd5 {[%clk 0:03:02]}  exd5 {[%clk 0:03:02]} 8. Qxd5 {[%clk 0:03:02]}  Nc6 {[%clk 0:03:02]} 9. Nf3 {[%clk 0:03:02]}  Rb8 {[%clk 0:03:02]} 10. e4 {[%clk 0:03:01]}  Be7 {[%clk 0:03:02]} 11. Bc4 {[%clk 0:03:02]}  O-O {[%clk 0:03:02]} 12. O-O {[%clk 0:03:02]}  Rxb6 {[%clk 0:03:03]} 13. Qh5 {[%clk 0:03:00]}  Nd4 {[%clk 0:01:56]} 14. Nxd4 {[%clk 0:02:52]}  cxd4 {[%clk 0:01:56]} 15. b3 {[%clk 0:02:52]}  Bb7 {[%clk 0:01:53]} 16. Re1 {[%clk 0:02:35]}  Rg6 {[%clk 0:01:42]} 17. Bf4 {[%clk 0:02:27]}  Bb4 {[%clk 0:01:35]} 18. Re2 {[%clk 0:02:24]}  Bc3 {[%clk 0:01:24]} 19. Rd1 {[%clk 0:02:14]}  Re8 {[%clk 0:01:22]} 20. Bd5 {[%clk 0:01:54]}  Bc6 {[%clk 0:01:11]} 21. a4 {[%clk 0:01:47]}  Qf6 {[%clk 0:01:07]} 22. Bg3 {[%clk 0:01:43]}  Rg5 {[%clk 0:01:00]} 23. Bxf7+ {[%clk 0:01:31]}  Kh8 {[%clk 0:00:50]} 24. Bh4 {[%clk 0:01:17]}  Ree5 {[%clk 0:00:34]} 25. Bxg5 {[%clk 0:01:06]}  Rxg5 {[%clk 0:00:34]} 26. Qh3 {[%clk 0:00:29]}  Qxf7 {[%clk 0:00:34]} 27. f4 {[%clk 0:00:27]}  Rg6 {[%clk 0:00:31]} 28. Rf1 {[%clk 0:00:25]}  Rh6 {[%clk 0:00:24]} 29. Qg3 {[%clk 0:00:24]}  Qxb3 {[%clk 0:00:21]} 30. Qg5 {[%clk 0:00:20]}  Qg8 {[%clk 0:00:17]} 31. f5 {[%clk 0:00:19]}  d3 {[%clk 0:00:17]} 32. Ree1 {[%clk 0:00:07]}  Bd4+ {[%clk 0:00:14]} 33. Kh1 {[%clk 0:00:07]}  Be5 {[%clk 0:00:14]} 34. g3 {[%clk 0:00:06]}  Rf6 {[%clk 0:00:12]} 35. Rf3 {[%clk 0:00:05]}  Qc4 {[%clk 0:00:10]} 36. Qd2 {[%clk 0:00:04]}  Bxe4 {[%clk 0:00:10]} 37. Rxe4 {[%clk 0:00:02]}  Qxe4 {[%clk 0:00:10]} 38. Kg2 {[%clk 0:00:03]}  d5 {[%clk 0:00:09]} 39. Kf2 {[%clk 0:00:03]}  Bd4+ {[%clk 0:00:09]} 40. Kg2 {[%clk 0:00:03]}  Qe2+ {[%clk 0:00:09]} 41. Qxe2 {[%clk 0:00:02]}  dxe2 {[%clk 0:00:10]} 42. Rb3 {[%clk 0:00:01]}  h6 {[%clk 0:00:10]} 43. Rb8+ {[%clk 0:00:01]}  Kh7 {[%clk 0:00:11]} 44. Re8 {[%clk 0:00:02]}  Rxf5 {[%clk 0:00:09]} 45. Rxe2 {[%clk 0:00:02]}  Re5 {[%clk 0:00:09]} 46. Rd2 {[%clk 0:00:02]}  Be3 {[%clk 0:00:10]} 47. Rd3 {[%clk 0:00:02]}  d4 {[%clk 0:00:10]} 48. Kf3 {[%clk 0:00:03]}  Ra5 {[%clk 0:00:11]} 49. Ra3 {[%clk 0:00:02]}  Kg6 {[%clk 0:00:11]} 50. h4 {[%clk 0:00:02]}  Kf5 {[%clk 0:00:11]} 51. g4+ {[%clk 0:00:02]}  Ke5 {[%clk 0:00:11]} 52. h5 {[%clk 0:00:01]}  Kd5 {[%clk 0:00:11]} 53. g5 {[%clk 0:00:01]}  hxg5 {[%clk 0:00:10]} 54. Kg4 {[%clk 0:00:00]}  Kc4 {[%clk 0:00:11]} 0-1

[Event "December 12 Early 2023"]
[Site "https://www.chess.com"]
[Date "2023.12.12"]
[Round "5"]
[White "Baches Garcia, Guillermo"]
[Black "Cardozo Munar, Carlos Eduardo"]
[Result "1-0"]
[Board "163"]
[TimeControl "180+1"]
[WhiteFideId "2209764"]
[BlackFideId "4409477"]
[WhiteElo "2489"]
[BlackElo "2274"]
[WhiteTeam "ESP"]
[BlackTeam "COL"]
[WhiteClock "0:00:17"]
[BlackClock "0:00:20"]

1. d4 {[%clk 0:03:00]}  d5 {[%clk 0:02:59]} 2. Nf3 {[%clk 0:03:01]}  c6 {[%clk 0:02:59]} 3. Bf4 {[%clk 0:03:00]}  e6 {[%clk 0:02:53]} 4. e3 {[%clk 0:02:58]}  Bd6 {[%clk 0:02:48]} 5. Ne5 {[%clk 0:02:56]}  Ne7 {[%clk 0:02:43]} 6. Bd3 {[%clk 0:02:52]}  Ng6 {[%clk 0:02:43]} 7. Qh5 {[%clk 0:02:45]}  Bxe5 {[%clk 0:02:39]} 8. Bxg6 {[%clk 0:02:35]}  Bxf4 {[%clk 0:02:34]} 9. Bxf7+ {[%clk 0:02:33]}  Kf8 {[%clk 0:02:34]} 10. exf4 {[%clk 0:02:31]}  Qf6 {[%clk 0:02:34]} 11. Be8 {[%clk 0:02:18]}  Ke7 {[%clk 0:02:34]} 12. Nd2 {[%clk 0:02:07]}  Rxe8 {[%clk 0:02:31]} 13. Qxh7 {[%clk 0:02:05]}  Nd7 {[%clk 0:02:24]} 14. Nf3 {[%clk 0:01:58]}  Nf8 {[%clk 0:02:22]} 15. Qh4 {[%clk 0:01:51]}  Qxh4 {[%clk 0:02:20]} 16. Nxh4 {[%clk 0:01:52]}  Bd7 {[%clk 0:02:21]} 17. g3 {[%clk 0:01:50]}  Kd6 {[%clk 0:02:20]} 18. Nf3 {[%clk 0:01:48]}  Ng6 {[%clk 0:02:13]} 19. O-O-O {[%clk 0:01:47]}  Rh8 {[%clk 0:02:12]} 20. h4 {[%clk 0:01:46]}  Rh5 {[%clk 0:02:12]} 21. Rhe1 {[%clk 0:01:42]}  a5 {[%clk 0:02:09]} 22. c3 {[%clk 0:01:42]}  a4 {[%clk 0:02:09]} 23. a3 {[%clk 0:01:42]}  b5 {[%clk 0:02:08]} 24. Re3 {[%clk 0:01:38]}  Rf5 {[%clk 0:02:07]} 25. Rde1 {[%clk 0:01:36]}  Re8 {[%clk 0:02:01]} 26. Ng5 {[%clk 0:01:31]}  Nh8 {[%clk 0:02:01]} 27. Kd2 {[%clk 0:01:26]}  Nf7 {[%clk 0:02:01]} 28. Nf3 {[%clk 0:01:19]}  Nh6 {[%clk 0:02:00]} 29. Ne5 {[%clk 0:01:17]}  Ng8 {[%clk 0:01:55]} 30. Nd3 {[%clk 0:01:12]}  Nf6 {[%clk 0:01:54]} 31. Nc5 {[%clk 0:01:12]}  Bc8 {[%clk 0:01:50]} 32. f3 {[%clk 0:01:08]}  Rh5 {[%clk 0:01:47]} 33. Re5 {[%clk 0:01:06]}  Rhh8 {[%clk 0:01:45]} 34. Rg5 {[%clk 0:01:02]}  Nh5 {[%clk 0:01:41]} 35. Ree5 {[%clk 0:00:58]}  Nf6 {[%clk 0:01:34]} 36. Rxg7 {[%clk 0:00:58]}  Reg8 {[%clk 0:01:34]} 37. Rgg5 {[%clk 0:00:49]}  Rxg5 {[%clk 0:01:32]} 38. fxg5 {[%clk 0:00:47]}  Nh5 {[%clk 0:01:31]} 39. g4 {[%clk 0:00:41]}  Nf4 {[%clk 0:01:27]} 40. h5 {[%clk 0:00:41]}  Rf8 {[%clk 0:01:22]} 41. g6 {[%clk 0:00:40]}  Ke7 {[%clk 0:01:18]} 42. g7 {[%clk 0:00:35]}  Rg8 {[%clk 0:01:14]} 43. h6 {[%clk 0:00:35]}  Ng6 {[%clk 0:01:14]} 44. Rg5 {[%clk 0:00:26]}  Kf6 {[%clk 0:01:15]} 45. f4 {[%clk 0:00:21]}  Nh8 {[%clk 0:00:56]} 46. gxh8=Q+ {[%clk 0:00:20]}  Rxh8 {[%clk 0:00:57]} 47. Rh5 {[%clk 0:00:19]}  Kg6 {[%clk 0:00:57]} 48. Ke3 {[%clk 0:00:19]}  Rh7 {[%clk 0:00:52]} 49. Rh2 {[%clk 0:00:19]}  Rh8 {[%clk 0:00:27]} 50. Nd3 {[%clk 0:00:19]}  Kh7 {[%clk 0:00:26]} 51. Ne5 {[%clk 0:00:18]}  Bb7 {[%clk 0:00:23]} 52. g5 {[%clk 0:00:18]}  Rg8 {[%clk 0:00:22]} 53. g6+ {[%clk 0:00:18]}  Kh8 {[%clk 0:00:20]} 54. Nf7# {[%clk 0:00:17]} 1-0

[Event "December 12 Early 2023"]
[Site "https://www.chess.com"]
[Date "2023.12.12"]
[Round "5"]
[White "Shukhman, Anna"]
[Black "Ratnesan, Ranesh"]
[Result "1-0"]
[Board "164"]
[TimeControl "180+1"]
[WhiteFideId "54180058"]
[BlackFideId "439339"]
[WhiteElo "2479"]
[BlackElo "2251"]
[WhiteTeam "FID"]
[BlackTeam "ENG"]
[WhiteClock "0:00:04"]
[BlackClock "0:00:03"]

1. e4 {[%clk 0:03:00]}  c5 {[%clk 0:02:35]} 2. Nf3 {[%clk 0:02:59]}  d6 {[%clk 0:02:36]} 3. d4 {[%clk 0:02:59]}  cxd4 {[%clk 0:02:36]} 4. Nxd4 {[%clk 0:03:00]}  Nf6 {[%clk 0:02:36]} 5. Nc3 {[%clk 0:03:00]}  a6 {[%clk 0:02:36]} 6. Qd3 {[%clk 0:03:00]}  e5 {[%clk 0:02:33]} 7. Nf5 {[%clk 0:02:59]}  Bxf5 {[%clk 0:02:32]} 8. exf5 {[%clk 0:03:00]}  d5 {[%clk 0:02:25]} 9. Bg5 {[%clk 0:02:59]}  e4 {[%clk 0:02:25]} 10. Bxf6 {[%clk 0:02:45]}  exd3 {[%clk 0:02:15]} 11. Bxd8 {[%clk 0:02:44]}  Kxd8 {[%clk 0:02:16]} 12. Bxd3 {[%clk 0:02:43]}  d4 {[%clk 0:02:16]} 13. Ne2 {[%clk 0:02:38]}  Nc6 {[%clk 0:02:16]} 14. Be4 {[%clk 0:02:37]}  Bb4+ {[%clk 0:02:15]} 15. c3 {[%clk 0:02:34]}  dxc3 {[%clk 0:02:15]} 16. bxc3 {[%clk 0:02:31]}  Bc5 {[%clk 0:02:11]} 17. O-O-O+ {[%clk 0:02:28]}  Kc7 {[%clk 0:02:11]} 18. Nf4 {[%clk 0:02:24]}  Rad8 {[%clk 0:02:00]} 19. Nd5+ {[%clk 0:02:23]}  Kb8 {[%clk 0:01:57]} 20. f3 {[%clk 0:02:23]}  Rhe8 {[%clk 0:01:46]} 21. Kc2 {[%clk 0:02:22]}  Re5 {[%clk 0:01:43]} 22. Nf4 {[%clk 0:02:17]}  Ree8 {[%clk 0:01:42]} 23. Nh5 {[%clk 0:02:01]}  Bf8 {[%clk 0:01:37]} 24. g4 {[%clk 0:01:54]}  Ne5 {[%clk 0:01:19]} 25. Rb1 {[%clk 0:01:46]}  Rd7 {[%clk 0:01:17]} 26. Rhd1 {[%clk 0:01:44]}  Rc7 {[%clk 0:01:17]} 27. Bd5 {[%clk 0:01:15]}  Rec8 {[%clk 0:01:15]} 28. Rb3 {[%clk 0:01:12]}  b5 {[%clk 0:01:15]} 29. Re1 {[%clk 0:00:38]}  Nc6 {[%clk 0:01:00]} 30. Kb1 {[%clk 0:00:32]}  Na5 {[%clk 0:00:58]} 31. Rb2 {[%clk 0:00:32]}  Rxc3 {[%clk 0:00:57]} 32. Be4 {[%clk 0:00:17]}  Nc4 {[%clk 0:00:47]} 33. Rbe2 {[%clk 0:00:16]}  Ba3 {[%clk 0:00:31]} 34. Bc2 {[%clk 0:00:15]}  Bb4 {[%clk 0:00:20]} 35. Bb3 {[%clk 0:00:15]}  Na5 {[%clk 0:00:16]} 36. Re8 {[%clk 0:00:11]}  Nxb3 {[%clk 0:00:10]} 37. axb3 {[%clk 0:00:06]}  Rxb3+ {[%clk 0:00:10]} 38. Ka2 {[%clk 0:00:06]}  Rxf3 {[%clk 0:00:09]} 39. Rxc8+ {[%clk 0:00:06]}  Kxc8 {[%clk 0:00:10]} 40. Re8+ {[%clk 0:00:06]}  Kd7 {[%clk 0:00:11]} 41. Ra8 {[%clk 0:00:06]}  g6 {[%clk 0:00:11]} 42. Nf6+ {[%clk 0:00:06]}  Ke7 {[%clk 0:00:12]} 43. Nxh7 {[%clk 0:00:06]}  a5 {[%clk 0:00:10]} 44. Ra7+ {[%clk 0:00:05]}  Kd8 {[%clk 0:00:08]} 45. Rxf7 {[%clk 0:00:05]}  gxf5 {[%clk 0:00:08]} 46. gxf5 {[%clk 0:00:04]}  Rf2+ {[%clk 0:00:08]} 47. Kb3 {[%clk 0:00:04]}  Rf3+ {[%clk 0:00:08]} 48. Kc2 {[%clk 0:00:04]}  Rf2+ {[%clk 0:00:09]} 49. Kd3 {[%clk 0:00:04]}  Rxh2 {[%clk 0:00:10]} 50. Ng5 {[%clk 0:00:04]}  a4 {[%clk 0:00:09]} 51. Ne6+ {[%clk 0:00:04]}  Ke8 {[%clk 0:00:09]} 52. Ra7 {[%clk 0:00:04]}  a3 {[%clk 0:00:09]} 53. f6 {[%clk 0:00:04]}  Bd6 {[%clk 0:00:03]} 54. f7# {[%clk 0:00:04]} 1-0